fUST/lending_fUST_20260228
["ID","MTS","AMOUNT","RATE_DAILY","PERIOD"]
[406865140,1772250638713,-500.0,0.00013699,2]
[406865142,1772250638722,-546.17170703,0.00013699,2]
[406865144,1772250638731,-538.81261311,0.00013699,2]
[406865146,1772250638740,-508.93531015,0.00013699,2]
[406865148,1772250638750,-500.0,0.00013699,2]
[406865150,1772250638758,-500.0,0.00013699,2]
[406865152,1772250638767,-500.0,0.00013699,2]
[406865154,1772250638776,-500.0,0.00013699,2]
[406865156,1772250638785,-500.0,0.00013699,2]
[406865159,1772250638805,-500.0,0.00013699,2]
[406865161,1772250638816,-500.0,0.00013699,2]
[406865163,1772250638825,-500.0,0.00013699,2]
[406865165,1772250638835,-500.0,0.00013699,2]
[406865167,1772250638845,-500.0,0.00013699,2]
[406865170,1772250638855,-500.0,0.00013699,2]
[406865172,1772250638864,-500.0,0.00013699,2]
[406865174,1772250638873,-500.0,0.00013699,2]
[406865176,1772250638883,-301.23005624,0.00013699,2]
[406865178,1772250638893,-150.0,0.000137,2]
[406865180,1772250638904,-3165.9,0.0001382,2]
[406865182,1772250638914,-1000.0,0.00013821,2]
[406865184,1772250638924,-1000.0,0.00013821,2]
[406865186,1772250638934,-1000.0,0.00013821,2]
[406865188,1772250638944,-1000.0,0.00013821,2]
[406865190,1772250638954,-1000.0,0.00013821,2]
[406865192,1772250638963,-500.6222747,0.00013821,2]
[406865194,1772250638973,-1000.0,0.00013821,2]
[406865196,1772250638983,-1000.0,0.00013821,2]
[406865198,1772250638996,-1000.0,0.00013821,2]
[406865201,1772250639005,-509.41112297,0.00013821,2]
[406865203,1772250639015,-1000.0,0.00013821,2]
[406865205,1772250639025,-158.18,0.00014044,2]
[406865207,1772250639035,-151.91751186,0.00014221,2]
[406865209,1772250639045,-1000.0,0.00014247,2]
[406865211,1772250639054,-1000.0,0.00014247,2]
[406865213,1772250639065,-1000.0,0.00014247,2]
[406865215,1772250639074,-1000.0,0.00014247,2]
[406865217,1772250639084,-508.32455004,0.00014247,2]
[406865219,1772250639093,-277.57458038,0.00014247,2]
[406865221,1772250639102,-1000.0,0.00014247,2]
[406865223,1772250639112,-1000.0,0.00014247,2]
[406865225,1772250639121,-1000.0,0.00014247,2]
[406865227,1772250639131,-507.27642237,0.00014247,2]
[406865229,1772250639141,-503.58092133,0.00014247,2]
[406865231,1772250639150,-1000.0,0.00014247,2]
[406865233,1772250639160,-1002.21127711,0.00014247,2]
[406865235,1772250639170,-1000.0,0.00014247,2]
[406865237,1772250639179,-150.0,0.00014348,2]
[406865239,1772250639188,-150.0,0.00014348,2]
[406865241,1772250639198,-150.0,0.00014348,2]
[406865243,1772250639207,-151.86896542,0.00014348,2]
[406865246,1772250639217,-500.0,0.00014348,2]
[406865248,1772250639226,-150.0,0.00014348,2]
[406865250,1772250639235,-150.0,0.00014348,2]
[406865252,1772250639244,-150.0,0.00014348,2]
[406865254,1772250639254,-1500.0,0.00014368,2]
[406865256,1772250639263,-1500.0,0.00014368,2]
[406865258,1772250639272,-1043.30660341,0.00014368,2]
[406865260,1772250639281,-1500.0,0.00014368,2]
[406865262,1772250639290,-1010.14231883,0.00014368,2]
[406865264,1772250639300,-1500.0,0.00014368,2]
[406865266,1772250639309,-1500.0,0.00014368,2]
[406865268,1772250639318,-166.33977879,0.00014368,2]
[406865270,1772250639327,-1504.65208438,0.00014368,2]
[406865272,1772250639337,-212.41403298,0.00014403,2]
[406865274,1772250639347,-150.0,0.00014403,2]
[406865276,1772250639356,-150.0,0.00014403,2]
[406865278,1772250639365,-500.0,0.00014403,2]
[406865280,1772250639375,-207.09400052,0.00014403,2]
[406865282,1772250639384,-249.92255981,0.00014403,2]
[406865284,1772250639394,-150.0,0.00014403,2]
[406865286,1772250639403,-196.40698205,0.00014458,2]
[406865288,1772250639413,-150.0,0.00014458,2]
[406865290,1772250639422,-500.0,0.00014458,2]
[406865292,1772250639432,-207.17481364,0.00014458,2]
[406865294,1772250639441,-150.0,0.00014512,2]
[406865296,1772250639450,-500.0,0.00014512,2]
[406865298,1772250639460,-3165.9,0.0001453,2]
[406865300,1772250639469,-150.80493127,0.00014567,2]
[406865302,1772250639479,-500.0,0.00014567,2]
[406865304,1772250639489,-3165.9,0.00014607,2]
[406865306,1772250639498,-500.0,0.00014608,2]
[406865308,1772250639508,-426.44854476,0.00014608,2]
[406865311,1772250639518,-500.0,0.00014608,2]
[406865313,1772250639527,-523.63884589,0.00014608,2]
[406865314,1772250639537,-500.0,0.00014608,2]
[406865317,1772250639547,-173.67785905,0.00014608,2]
[406865319,1772250639558,-500.0,0.00014608,2]
[406865321,1772250639567,-500.0,0.00014608,2]
[406865323,1772250639576,-500.0,0.00014608,2]
[406865325,1772250639588,-500.0,0.00014608,2]
[406865327,1772250639598,-500.0,0.00014608,2]
[406865329,1772250639607,-500.0,0.00014608,2]
[406865331,1772250639617,-500.0,0.00014608,2]
[406865333,1772250639627,-500.0,0.00014608,2]
[406865335,1772250639636,-500.0,0.00014608,2]
[406865337,1772250639645,-500.0,0.00014608,2]
[406865339,1772250639655,-500.0,0.00014608,2]
[406865341,1772250639665,-3165.9,0.0001461,2]
[406865343,1772250639675,-151.0,0.0001461,2]
[406865345,1772250639684,-151.0,0.0001461,2]
[406865347,1772250639694,-151.0,0.0001461,2]
[406865349,1772250639703,-151.0,0.0001461,2]
[406865350,1772250639713,-427.42358656,0.00014617,2]
[406865351,1772250639722,-500.0,0.00014622,2]
[406865352,1772250639732,-2042.8068668,0.00014673,2]
[406865353,1772250639742,-500.0,0.00014677,2]
[406865354,1772250639751,-500.0,0.00014712,2]
[406865355,1772250639760,-150.0,0.00014732,2]
[406865356,1772250639770,-383.98294155,0.00014794,2]
[406865357,1772250639780,-1081.95130433,0.00014795,2]
[406865358,1772250639789,-1079.86046473,0.00014795,2]
[406865359,1772250639798,-1200.85249456,0.00014795,2]
[406865360,1772250639808,-583.82857887,0.00014795,2]
[406865361,1772250639818,-1500.0,0.00014795,2]
[406865362,1772250639827,-513.20272033,0.00014795,2]
[406865364,1772250639837,-322.0603362,0.00014795,2]
[406865366,1772250639846,-1500.0,0.00014795,2]
[406865368,1772250639856,-1500.0,0.00014795,2]
[406865370,1772250639866,-275.12670145,0.00014799,2]
[406865372,1772250639876,-151.0,0.00014887,2]
[406865374,1772250639885,-3165.9,0.00014887,2]
[406865376,1772250639895,-500.0,0.00014887,2]
[406865378,1772250639905,-15666.45000986,0.00014888,2]
[406865380,1772250639914,-151.0,0.00014888,2]
[406865382,1772250639924,-151.0,0.00014916,2]
[406865384,1772250639933,-151.0,0.00014916,2]
[406865386,1772250639942,-151.0,0.00014916,2]
[406865388,1772250639952,-151.0,0.00014916,2]
[406865390,1772250639962,-888.43950925,0.00014916,2]
[406865392,1772250639971,-1512.02022199,0.00014916,2]
[406865394,1772250639981,-1037.54159902,0.00014916,2]
[406865396,1772250639993,-2000.0,0.00014916,2]
[406865398,1772250640002,-2000.0,0.00014916,2]
[406865400,1772250640012,-438.83764749,0.00014936,2]
[406865402,1772250640021,-314.43051594,0.00014937,2]
[406865404,1772250640031,-271.27657751,0.00014976,2]
[406865406,1772250640041,-151.54376316,0.00015,2]
[406865408,1772250640050,-151.0,0.00015022,2]
[406865411,1772250640060,-151.0,0.00015022,2]
[406865413,1772250640072,-151.0,0.00015022,2]
[406865415,1772250640082,-154.13121,0.00015022,2]
[406865417,1772250640091,-250.0,0.00015022,2]
[406865419,1772250640101,-250.0,0.00015022,2]
[406865421,1772250640110,-250.0,0.00015022,2]
[406865423,1772250640120,-250.0,0.00015022,2]
[406865425,1772250640129,-250.0,0.00015022,2]
[406865427,1772250640139,-250.0,0.00015022,2]
[406865429,1772250640148,-250.0,0.00015022,2]
[406865431,1772250640158,-380.51856897,0.00015022,2]
[406865433,1772250640167,-250.0,0.00015022,2]
[406865435,1772250640177,-250.0,0.00015022,2]
[406865437,1772250640187,-250.0,0.00015022,2]
[406865439,1772250640196,-250.0,0.00015022,2]
[406865441,1772250640206,-250.0,0.00015022,2]
[406865443,1772250640214,-250.0,0.00015022,2]
[406865445,1772250640224,-250.0,0.00015022,2]
[406865447,1772250640233,-250.0,0.00015022,2]
[406865449,1772250640243,-250.0,0.00015022,2]
[406865451,1772250640252,-250.0,0.00015022,2]
[406865453,1772250640261,-250.0,0.00015022,2]
[406865455,1772250640270,-250.0,0.00015022,2]
[406865457,1772250640280,-250.0,0.00015022,2]
[406865459,1772250640290,-250.0,0.00015022,2]
[406865461,1772250640300,-500.0,0.00015022,2]
[406865463,1772250640309,-250.0,0.00015022,2]
[406865465,1772250640320,-250.0,0.00015022,2]
[406865467,1772250640330,-500.0,0.00015022,2]
[406865469,1772250640339,-250.0,0.00015022,2]
[406865471,1772250640349,-250.0,0.00015022,2]
[406865473,1772250640359,-500.0,0.00015022,2]
[406865475,1772250640368,-250.0,0.00015022,2]
[406865477,1772250640378,-250.0,0.00015022,2]
[406865479,1772250640387,-500.0,0.00015022,2]
[406865481,1772250640397,-250.0,0.00015022,2]
[406865483,1772250640407,-500.0,0.00015022,2]
[406865485,1772250640416,-250.0,0.00015022,2]
[406865487,1772250640426,-250.0,0.00015022,2]
[406865489,1772250640436,-500.0,0.00015022,2]
[406865491,1772250640445,-668.65185757,0.00015022,2]
[406865493,1772250640455,-250.0,0.00015022,2]
[406865495,1772250640465,-250.0,0.00015022,2]
[406865497,1772250640474,-500.0,0.00015022,2]
[406865499,1772250640484,-250.0,0.00015022,2]
[406865502,1772250640494,-500.0,0.00015022,2]
[406865503,1772250640503,-227.65899494,0.00015022,2]
[406865505,1772250640512,-250.0,0.00015022,2]
[406865507,1772250640522,-250.0,0.00015022,2]
[406865509,1772250640532,-500.0,0.00015022,2]
[406865512,1772250640541,-250.0,0.00015022,2]
[406865514,1772250640550,-250.0,0.00015022,2]
[406865515,1772250640560,-500.0,0.00015022,2]
[406865517,1772250640569,-206.65353052,0.00015022,2]
[406865519,1772250640578,-500.0,0.00015022,2]
[406865521,1772250640587,-250.0,0.00015022,2]
[406865523,1772250640597,-500.0,0.00015022,2]
[406865525,1772250640606,-250.0,0.00015022,2]
[406865527,1772250640615,-500.0,0.00015022,2]
[406865529,1772250640624,-250.0,0.00015022,2]
[406865531,1772250640634,-500.0,0.00015022,2]
[406865533,1772250640643,-500.0,0.00015022,2]
[406865535,1772250640653,-250.0,0.00015022,2]
[406865537,1772250640663,-500.0,0.00015022,2]
[406865539,1772250640672,-500.0,0.00015022,2]
[406865541,1772250640681,-250.0,0.00015022,2]
[406865543,1772250640690,-162.68683902,0.00015022,2]
[406865545,1772250640699,-500.0,0.00015022,2]
[406865547,1772250640709,-250.0,0.00015022,2]
[406865549,1772250640718,-500.0,0.00015022,2]
[406865551,1772250640727,-250.0,0.00015022,2]
[406865573,1772250640940,-500.0,0.00015022,2]
[406865575,1772250640949,-250.0,0.00015022,2]
[406865577,1772250640959,-500.0,0.00015022,2]
[406865579,1772250640968,-250.0,0.00015022,2]
[406865581,1772250640978,-250.0,0.00015022,2]
[406865582,1772250640991,-500.0,0.00015022,2]
[406865585,1772250641000,-250.0,0.00015022,2]
[406865586,1772250641010,-500.0,0.00015022,2]
[406865588,1772250641019,-250.0,0.00015022,2]
[406865590,1772250641029,-500.0,0.00015022,2]
[406865592,1772250641038,-250.0,0.00015022,2]
[406865594,1772250641048,-250.0,0.00015022,2]
[406865596,1772250641057,-250.0,0.00015022,2]
[406865598,1772250641068,-250.0,0.00015022,2]
[406865600,1772250641077,-201.93286099,0.00015022,2]
[406865602,1772250641086,-500.0,0.00015022,2]
[406865604,1772250641095,-209.40437684,0.00015022,2]
[406865606,1772250641104,-500.0,0.00015022,2]
[406865608,1772250641113,-217.15233878,0.00015022,2]
[406865610,1772250641122,-500.0,0.00015022,2]
[406865612,1772250641131,-225.18697532,0.00015022,2]
[406865614,1772250641140,-500.0,0.00015022,2]
[406865616,1772250641149,-233.51889341,0.00015022,2]
[406865618,1772250641159,-500.0,0.00015022,2]
[406865620,1772250641168,-2674.60743027,0.00015022,2]
[406865622,1772250641177,-242.15909246,0.00015022,2]
[406865624,1772250641186,-500.0,0.00015022,2]
[406865626,1772250641195,-251.11897888,0.00015022,2]
[406865628,1772250641204,-490.80638348,0.00015075,2]
[406865630,1772250641213,-684.99814037,0.00015079,2]
[406865632,1772250641222,-488.29783952,0.00015119,2]
[406865634,1772250641233,-362181.25,0.00015242,6]
[406865636,1772250641242,-868.08504804,0.00015261,2]
[406865638,1772250641251,-3165.9,0.00015342,2]
[406865640,1772250641259,-151.0,0.00015342,2]
[406865642,1772250641268,-151.0,0.00015342,2]
[406865644,1772250641278,-151.0,0.00015342,2]
[406865646,1772250641287,-151.0,0.00015342,2]
[406865648,1772250641297,-788.53984158,0.00015342,2]
[406865650,1772250641307,-239.03494799,0.00015342,2]
[406865652,1772250641316,-2000.0,0.00015342,2]
[406865654,1772250641325,-1355.02650468,0.00015404,2]
[406865656,1772250641334,-2500.0,0.00015464,2]
[406865658,1772250641343,-2500.0,0.00015464,2]
[406865660,1772250641353,-219.45537255,0.00015511,2]
[406865662,1772250641362,-151.0,0.00015542,2]
[406865664,1772250641372,-151.0,0.00015542,2]
[406865666,1772250641381,-151.0,0.00015542,2]
[406865668,1772250641390,-263.41327335,0.0001557,2]
[406865669,1772250641399,-2773.56790519,0.0001557,2]
[406865671,1772250641410,-168.0,0.00015755,2]
[406865673,1772250641419,-205.59262563,0.00015758,2]
[406865675,1772250641428,-5888.0,0.00015759,2]
[406865676,1772250641437,-168.0,0.00015786,2]
[406865678,1772250641446,-500.0,0.00015799,2]
[406865680,1772250641456,-1500.0,0.000158,2]
[406865681,1772250641465,-1500.0,0.000158,2]
[406865682,1772250641475,-1500.0,0.000158,2]
[406865683,1772250641484,-1500.0,0.000158,2]
[406865684,1772250641495,-1500.0,0.000158,2]
[406865685,1772250641505,-2626.880038,0.000158,2]
[406865687,1772250641514,-151.0,0.000158,2]
[406865689,1772250641523,-3165.9,0.00015818,2]
[406865691,1772250641532,-168.0,0.00015818,2]
[406865693,1772250641541,-159.819323,0.00015824,2]
[406865695,1772250641555,-3165.9,0.00015839,2]
[406865697,1772250641564,-3165.9,0.00015839,2]
[406865698,1772250641575,-3165.9,0.00015839,2]
[406865700,1772250641584,-3165.9,0.00015839,2]
[406865701,1772250641594,-3165.9,0.00015839,2]
[406865702,1772250641604,-3165.9,0.00015839,2]
[406865703,1772250641614,-3165.9,0.00015839,2]
[406865704,1772250641623,-3165.9,0.00015839,2]
[406865705,1772250641634,-3165.9,0.00015839,2]
[406865706,1772250641643,-3165.9,0.00015839,2]
[406865707,1772250641653,-3165.9,0.00015839,2]
[406865708,1772250641663,-3165.9,0.00015839,2]
[406865709,1772250641673,-3165.9,0.00015839,2]
[406865710,1772250641686,-3166.06347637,0.00015839,2]
[406865711,1772250641695,-151.0,0.00015839,2]
[406865712,1772250641705,-151.0,0.00015839,2]
[406865713,1772250641716,-151.0,0.00015839,2]
[406865714,1772250641726,-151.0,0.00015839,2]
[406865715,1772250641736,-151.0,0.00015839,2]
[406865716,1772250641745,-151.0,0.00015839,2]
[406865717,1772250641755,-151.0,0.00015839,2]
[406865718,1772250641765,-553.87734347,0.0001584,2]
[406865719,1772250641774,-412967.63843026,0.0001584,2]
[406865720,1772250641783,-151.0,0.0001584,2]
[406865721,1772250641793,-151.0,0.0001584,2]
[406865722,1772250641803,-151.0,0.0001584,2]
[406865723,1772250641812,-151.0,0.0001584,2]
[406865724,1772250641822,-162.536838,0.0001584,2]
[406865725,1772250641831,-167.276696,0.0001584,2]
[406865726,1772250641841,-233.73641,0.0001584,2]
[406865727,1772250641850,-2500.0,0.0001589,2]
[406865728,1772250641860,-151.0,0.000159,2]
[406865729,1772250641869,-151.0,0.000159,2]
[406865730,1772250641879,-151.0,0.000159,2]
[406865731,1772250641889,-6702.27836932,0.000159,2]
[406865732,1772250641899,-2000.0,0.000159,2]
[406865733,1772250641909,-168.0,0.00015956,2]
[406865734,1772250641919,-500.0,0.00015999,2]
[406865735,1772250641931,-585.10589244,0.00015999,2]
[406865736,1772250641940,-96591.79357586,0.00016,2]
[406865737,1772250642496,-500.0,0.00015022,2]
[406865738,1772250642506,-438.46398204,0.00016,2]
[406865752,1772250646309,-2239.07457887,0.00014872,2]
[406865753,1772250646322,-2760.92542113,0.00014872,2]
[406865754,1772250646331,-260.4103811,0.00015022,2]
[406865755,1772250646340,-500.0,0.00015022,2]
[406865756,1772250646349,-270.0455652,0.00015022,2]
[406865757,1772250646358,-500.0,0.00015022,2]
[406865758,1772250646367,-280.03725112,0.00015022,2]
[406865759,1772250646376,-500.0,0.00015022,2]
[406865760,1772250646386,-290.39862941,0.00015022,2]
[406865761,1772250646397,-201.93286099,0.00015022,2]
[406865762,1772250646407,-500.0,0.00015022,2]
[406865763,1772250646416,-301.1433787,0.00015022,2]
[406865764,1772250646425,-500.0,0.00015022,2]
[406865765,1772250646435,-2996.99194595,0.00016,2]
[406865766,1772250646444,-81492.13164388,0.00016,2]
[406865767,1772250709151,169.011539,8.033e-05,2]
[406865768,1772250864926,1410.7517439,0.0001,2]
[406865769,1772250913412,2187.0,0.000158,120]
[406865770,1772251085014,-5000.0,9.801e-05,2]
[406865771,1772251085042,-5000.0,9.9e-05,2]
[406865774,1772251498908,5000.0,9.501e-05,2]
[406865775,1772251520819,5000.0,9.501e-05,2]
[406865777,1772251544180,5000.0,9.501e-05,2]
[406865778,1772251567789,5000.0,9.501e-05,2]
[406865779,1772251590757,5000.0,9.501e-05,2]
[406865780,1772251612501,5000.0,9.501e-05,2]
[406865781,1772251635272,5000.0,9.501e-05,2]
[406865782,1772251657261,5000.0,9.501e-05,2]
[406865783,1772251679674,496.97825269,9.501e-05,2]
[406865784,1772251696840,5000.0,9.501e-05,2]
[406865785,1772251750974,-5000.0,9.672e-05,2]
[406865786,1772251751001,-152.93965601,9.769e-05,2]
[406865787,1772251785655,-5000.0,9.8e-05,2]
[406865788,1772251787481,5000.0,9.702e-05,2]
[406865818,1772251832747,-559.0,9.919e-05,2]
[406865819,1772251832757,-2532.85,0.0001,10]
[406865820,1772251832766,-5000.0,0.00010122,2]
[406865821,1772251832776,-169.011539,0.00010224,2]
[406865822,1772251832785,-178.864841,0.0001128,2]
[406865823,1772251832795,-178.864841,0.00011755,2]
[406865824,1772251832804,-300.0,0.00011768,2]
[406865825,1772251832814,-1200.0,0.00011768,2]
[406865826,1772251832823,-500.0,0.00011768,2]
[406865827,1772251832833,-13730.92313883,0.00011768,2]
[406865828,1772251832898,-1192.18933296,0.00011768,2]
[406865829,1772251838411,-435.0,0.00011767,2]
[406865842,1772251838517,-65.0,0.00011767,2]
[406865844,1772251838526,-171.45112885,0.00011767,2]
[406865846,1772251838535,-500.0,0.00011767,2]
[406865848,1772251838545,-500.0,0.00011767,2]
[406865850,1772251838554,-500.0,0.00011767,2]
[406865852,1772251838563,-500.0,0.00011767,2]
[406865854,1772251838572,-271.65583509,0.00011767,2]
[406865856,1772251838581,-304.65834723,0.00011767,2]
[406865858,1772251838590,-500.0,0.00011767,2]
[406865860,1772251838599,-500.0,0.00011767,2]
[406865862,1772251838608,-500.0,0.00011767,2]
[406865863,1772251838618,-500.0,0.00011767,2]
[406865865,1772251838627,-500.0,0.00011767,2]
[406865867,1772251838636,-500.0,0.00011767,2]
[406865869,1772251838646,-300.0,0.00011767,2]
[406865871,1772251838655,-500.0,0.00011767,2]
[406865873,1772251838664,-500.0,0.00011767,2]
[406865875,1772251838673,-500.0,0.00011767,2]
[406865877,1772251838682,-183.18100117,0.00011767,2]
[406865879,1772251838692,-500.0,0.00011767,2]
[406865881,1772251838701,-16633.53061636,0.00011768,2]
[406865883,1772251838710,-177.0,0.0001196,2]
[406865885,1772251838719,-500.0,0.00012042,2]
[406865887,1772251838729,-178.864841,0.0001223,2]
[406865889,1772251838739,-168.90178382,0.00012313,2]
[406865891,1772251838749,-527.08972352,0.00012316,2]
[406865893,1772251838759,-169.011539,0.00012415,2]
[406865896,1772251838768,-178.864841,0.00012705,2]
[406865898,1772251838778,-420.0,0.00012921,2]
[406865900,1772251838787,-1068.0,0.00012944,2]
[406865901,1772251838796,-178.864841,0.0001318,2]
[406865903,1772251838806,-312.88490144,0.00013273,2]
[406865906,1772251838816,-500.0,0.00013273,2]
[406865908,1772251838825,-500.0,0.00013273,2]
[406865910,1772251838835,-500.0,0.00013273,2]
[406865912,1772251838845,-500.0,0.00013273,2]
[406865914,1772251838854,-500.0,0.00013273,2]
[406865916,1772251838864,-500.0,0.00013273,2]
[406865918,1772251838873,-500.0,0.00013273,2]
[406865920,1772251838882,-500.0,0.00013273,2]
[406865922,1772251838891,-512.5644769,0.00013273,2]
[406865924,1772251838901,-359.35387874,0.00013273,2]
[406865925,1772251838910,-500.0,0.00013273,2]
[406865927,1772251838919,-500.0,0.00013273,2]
[406865930,1772251838928,-168.90178381,0.00013509,2]
[406865931,1772251838937,-600.0,0.00013536,2]
[406865934,1772251838947,-178.864841,0.00013655,2]
[406865936,1772251838956,-278.69834817,0.00013673,2]
[406865937,1772251838965,-447.85192044,0.00013698,2]
[406865939,1772251838974,-1955.46,0.00013698,2]
[406865941,1772251838983,-1955.46,0.00013698,2]
[406865944,1772251838993,-1955.46,0.00013698,2]
[406865945,1772251839002,-1955.46,0.00013698,2]
[406865947,1772251839011,-179.48154755,0.00013698,2]
[406865950,1772251839030,-1775.97845245,0.00013698,2]
[406865952,1772251839039,-500.0,0.00013698,2]
[406865954,1772251839048,-500.0,0.00013698,2]
[406865956,1772251839057,-500.0,0.00013698,2]
[406865958,1772251839066,-554.615359,0.00013699,2]
[406865960,1772251839075,-500.0,0.00013699,2]
[406865963,1772251839084,-260.14390444,0.00013699,2]
[406866420,1772251843843,-239.85609556,0.00013699,2]
[406866422,1772251843853,-500.0,0.00013699,2]
[406866424,1772251843862,-223.06856173,0.00013699,2]
[406866426,1772251843871,-500.0,0.00013699,2]
[406866428,1772251843880,-287.92534271,0.00013699,2]
[406866431,1772251843903,-212.07465729,0.00013699,2]
[406866433,1772251843913,-141.37534271,0.00013699,2]
[406866694,1772251846509,-396.12304574,0.00013699,2]
[406866696,1772251846518,-500.0,0.00013699,2]
[406866698,1772251846529,-500.0,0.00013699,2]
[406866700,1772251846539,-500.0,0.00013699,2]
[406866702,1772251846548,-500.0,0.00013699,2]
[406866704,1772251846557,-500.0,0.00013699,2]
[406866706,1772251846566,-500.0,0.00013699,2]
[406866708,1772251846576,-500.0,0.00013699,2]
[406866710,1772251846585,-500.0,0.00013699,2]
[406866712,1772251846594,-500.0,0.00013699,2]
[406866714,1772251846604,-500.0,0.00013699,2]
[406866716,1772251846613,-500.0,0.00013699,2]
[406866718,1772251846621,-191.19351175,0.00013699,2]
[406866720,1772251846630,-500.0,0.00013699,2]
[406866722,1772251846640,-500.0,0.00013699,2]
[406866724,1772251846649,-500.0,0.00013699,2]
[406866726,1772251846659,-1000.0,0.00013821,2]
[406866728,1772251846668,-1000.0,0.00013821,2]
[406866729,1772251846677,-500.0,0.00013821,2]
[406866730,1772251846686,-506.64104729,0.00013821,2]
[406866731,1772251846695,-1000.0,0.00013821,2]
[406866732,1772251846704,-501.5598082,0.00013821,2]
[406866733,1772251846714,-501.29642876,0.00013821,2]
[406866734,1772251846723,-354.12532149,0.00013821,2]
[406866735,1772251846732,-1000.0,0.00013821,2]
[406866736,1772251846742,-559.62590666,0.00013821,2]
[406866746,1772252800126,-298.42025008,0.00011764,2]
[406866786,1772253032490,-768.55234209,0.00011301,2]
[406866787,1772253032502,-2159.41328046,0.00011301,2]
[406866788,1772253032513,-854.37102466,0.00011301,2]
[406866789,1772253032529,-896.30572574,0.00011301,2]
[406866790,1772253032540,-321.35762705,0.00011301,2]
[406866791,1772253032553,-71.18237295,0.00011415,2]
[406866792,1772253032579,-1846.49673669,0.00011415,2]
[406866793,1772253032683,-10.757885,0.00011415,2]
[406866920,1772253039546,-1052.49164465,0.00011301,2]
[406866922,1772253039558,-943.065,0.00011301,2]
[406866926,1772253039585,-1303.82205096,0.00011301,2]
[406866928,1772253039598,-1580.77621283,0.00011301,2]
[406866930,1772253039613,-119.84509156,0.00011301,2]
[406866932,1772253039622,-1042.64222137,0.00011415,2]
[406866934,1772253039633,-1890.68751721,0.00011415,2]
[406867058,1772253041076,-138.23326678,0.00011415,2]
[406867060,1772253041091,-300.0,0.00011643,2]
[406867062,1772253041100,-300.0,0.00011643,2]
[406867064,1772253041109,-300.0,0.00011643,2]
[406867066,1772253041118,-300.0,0.00011643,2]
[406867068,1772253041127,-150.0,0.00011823,2]
[406867070,1772253041137,-1200.0,0.00011882,2]
[406867072,1772253041146,-227.0,0.00012786,2]
[406867074,1772253041155,-810.33413792,0.00012787,2]
[406867364,1772253044078,-930.61712966,0.00012659,2]
[406867374,1772253044188,-585.75366434,0.00012659,2]
[406867628,1772253046620,-3483.629206,0.00012659,2]
[406867630,1772253046630,-6648.87136908,0.00012787,2]
[406867632,1772253046639,-168.90178381,0.00013249,2]
[406867634,1772253046649,-1868.53256352,0.00013249,2]
[406867636,1772253046658,-500.0,0.00013273,2]
[406867638,1772253046667,-500.23833675,0.00013273,2]
[406867640,1772253046677,-500.0,0.00013273,2]
[406867642,1772253046686,-500.82581334,0.00013273,2]
[406867644,1772253046695,-521.72454831,0.00013273,2]
[406867646,1772253046705,-500.0,0.00013273,2]
[406867648,1772253046714,-500.0,0.00013273,2]
[406867650,1772253046724,-500.0,0.00013273,2]
[406867652,1772253046733,-501.04006137,0.00013273,2]
[406867654,1772253046742,-10000.0,0.00013355,2]
[406867656,1772253046751,-500.0,0.00013698,2]
[406867658,1772253046760,-1548.07,0.00013698,2]